bitfinex/quotes_BTCUSD_20250723
["timestamp","ask_amount","ask_price","bid_price","bid_amount"]
[1753296809422,0.77401007,118480.0,118470.0,0.68976607]
[1753296809606,0.00049128,118480.0,118470.0,1.1052813]
[1753296809850,0.00049128,118480.0,118470.0,1.13117041]
[1753296810340,0.00049128,118480.0,118470.0,1.21564771]
[1753296810804,0.00049128,118480.0,118470.0,1.21464771]
[1753296811228,0.00049128,118480.0,118470.0,1.21664771]
[1753296811453,0.00049128,118480.0,118470.0,1.21464771]
[1753296811725,0.00049128,118480.0,118470.0,1.21764771]
[1753296812351,0.00049128,118480.0,118470.0,1.21864771]
[1753296812975,0.00049128,118480.0,118470.0,1.21764771]
[1753296813199,0.00049128,118480.0,118470.0,1.21964771]
[1753296816949,0.00049128,118480.0,118470.0,1.09000771]
[1753296817172,0.00049128,118480.0,118470.0,1.21964771]
[1753296819884,0.00049128,118480.0,118470.0,1.21960771]
[1753296821922,0.00893088,118480.0,118470.0,0.64264609]
[1753296822128,0.03798968,118480.0,118470.0,0.75584609]
[1753296822682,0.03798968,118480.0,118470.0,0.73649609]
[1753296822958,0.04642956,118480.0,118470.0,0.73649609]
[1753296823192,0.21738442,118480.0,118470.0,0.53670343]
[1753296823415,0.2343553,118480.0,118470.0,0.36788432]
[1753296823619,0.2343553,118480.0,118470.0,0.67474431]
[1753296823829,0.2343553,118480.0,118470.0,0.68318512]
[1753296824042,0.2343553,118480.0,118470.0,0.68862586]
[1753296824283,0.2343553,118480.0,118470.0,0.68018512]
[1753296824464,0.2343553,118480.0,118470.0,0.67174431]
[1753296824728,0.2343553,118480.0,118470.0,0.66974431]
[1753296824909,0.2343553,118480.0,118470.0,0.67274431]
[1753296825084,0.2343553,118480.0,118470.0,0.67074431]
[1753296825293,0.2343553,118480.0,118470.0,0.67174431]
[1753296825498,0.2343553,118480.0,118470.0,0.67074431]
[1753296826102,0.6343553,118480.0,118470.0,0.67074431]
[1753296826290,0.6343553,118480.0,118470.0,0.67918505]
[1753296826922,0.6343553,118480.0,118470.0,0.68762572]
[1753296827846,0.6343553,118480.0,118470.0,0.69606631]
[1753296828571,0.6343553,118480.0,118470.0,0.67918505]
[1753296829121,0.6343553,118480.0,118470.0,0.66230343]
[1753296829331,0.8688326,118480.0,118470.0,0.36388432]
[1753296829574,0.4688326,118480.0,118470.0,0.1306]
[1753296829789,0.4688326,118480.0,118470.0,0.49348432]
[1753296830454,0.4688326,118480.0,118470.0,0.66230343]
[1753296830661,0.4688326,118480.0,118470.0,0.67074438]
[1753296831323,0.4688326,118480.0,118470.0,0.50192527]
[1753296831501,0.4688326,118480.0,118470.0,0.37232527]
[1753296831743,0.4688326,118480.0,118470.0,0.49348432]
[1753296832922,0.4688326,118480.0,118470.0,0.66230343]
[1753296833116,0.4688326,118480.0,118470.0,0.67074438]
[1753296833716,0.4688326,118480.0,118470.0,0.49348432]
[1753296834279,0.4688326,118480.0,118470.0,0.67074438]
[1753296835440,0.4688326,118480.0,118470.0,0.50192527]
[1753296835742,0.4688326,118480.0,118470.0,0.49348432]
[1753296836327,0.4688326,118480.0,118470.0,0.36388432]
[1753296836559,0.4688326,118480.0,118470.0,0.66230343]
[1753296836703,0.4688326,118480.0,118470.0,0.55802586]
[1753296836908,0.4688326,118480.0,118470.0,0.68762586]
[1753296837665,0.46509366,118480.0,118470.0,0.69606645]
[1753296837884,0.46509366,118480.0,118470.0,0.68762586]
[1753296838336,0.46509366,118480.0,118470.0,0.55802586]
[1753296838568,0.46509366,118480.0,118470.0,0.69606653]
[1753296838900,0.43439366,118480.0,118470.0,0.69819653]
[1753296839199,0.25714856,118480.0,118470.0,0.69819653]
[1753296839389,0.43439366,118480.0,118470.0,0.69819653]
[1753296839639,0.46689366,118480.0,118470.0,0.68975586]
[1753296840029,0.46689366,118480.0,118470.0,0.68762586]
[1753296840349,0.46689366,118480.0,118470.0,0.69606653]
[1753296840573,0.25714856,118480.0,118470.0,0.70663705]
[1753296840782,0.25714856,118480.0,118470.0,0.70663662]
[1753296840995,0.42595342,118480.0,118470.0,0.69819617]
[1753296841216,0.2655888,118480.0,118470.0,0.70663662]
[1753296841372,0.43439366,118480.0,118470.0,0.69819617]
[1753296841593,0.25714813,118480.0,118470.0,0.70663662]
[1753296841803,0.10184827,118480.0,118470.0,0.70985662]
[1753296842021,0.1018482,118480.0,118470.0,1.08864094]
[1753296842613,0.5018482,118480.0,118470.0,1.08864094]
[1753296842835,0.5102883,118480.0,118470.0,1.07274094]
[1753296843032,0.5018482,118480.0,118470.0,0.70985662]
[1753296843506,0.53370905,118480.0,118470.0,0.70985662]
[1753296843832,0.542149,118480.0,118470.0,0.70985662]
[1753296844041,0.5505891,118480.0,118470.0,0.70985662]
[1753296844947,0.5018482,118480.0,118470.0,0.70985662]
[1753296845482,0.5102883,118480.0,118470.0,0.70985662]
[1753296846315,0.5018482,118480.0,118470.0,0.70985662]
[1753296847493,0.40893095,118480.0,118470.0,0.70985662]
[1753296847723,0.41737069,118480.0,118470.0,1.10404094]
[1753296848390,0.40049128,118480.0,118470.0,0.74115662]
[1753296848619,0.41737062,118480.0,118470.0,0.74115662]
[1753296848819,0.40049128,118480.0,118470.0,0.74115662]
[1753296849026,0.40893095,118480.0,118470.0,0.74115662]
[1753296849249,0.00049128,118480.0,118470.0,1.10404094]
[1753296850862,0.00049128,118480.0,118470.0,1.10504094]
[1753296851065,0.00049128,118480.0,118470.0,1.10404094]
[1753296852531,0.00049128,118480.0,118470.0,1.10604094]
[1753296856463,0.00049128,118480.0,118470.0,0.97644094]
[1753296856697,0.00049128,118480.0,118470.0,1.10600094]
[1753296859153,0.00049128,118480.0,118470.0,1.19047824]
[1753296859461,0.00049128,118480.0,118470.0,1.07836726]
[1753296859913,0.00049128,118480.0,118470.0,1.20792726]
[1753296860154,0.00049128,118480.0,118470.0,1.21524228]
[1753296860376,0.00049128,118480.0,118470.0,1.05791824]
[1753296860595,0.00049128,118480.0,118470.0,1.19047824]
[1753296860856,0.00049128,118480.0,118470.0,1.19447824]
[1753296864037,0.00049128,118480.0,118470.0,0.60175662]
[1753296864262,0.00049128,118480.0,118470.0,1.10926094]
[1753296868955,0.00049128,118480.0,118470.0,1.19373824]
[1753296872283,0.00049128,118480.0,118470.0,1.21886491]
[1753296879980,0.00049128,118480.0,118470.0,0.49309627]
[1753296880188,0.00049128,118480.0,118470.0,1.21886491]
[1753296888536,0.0378389,118500.0,118490.0,0.55699265]
[1753296888753,0.04001622,118500.0,118490.0,0.68861265]
[1753296888973,0.04301622,118500.0,118490.0,0.68861265]
[1753296889818,0.00668622,118500.0,118490.0,1.17065427]
[1753296890268,0.00668622,118500.0,118490.0,0.80876995]
[1753296890953,0.00668622,118500.0,118490.0,0.81076995]
[1753296891394,0.00668622,118500.0,118490.0,0.81376995]
[1753296891606,0.00668622,118500.0,118490.0,0.81276995]
[1753296891810,0.00668622,118500.0,118490.0,0.81376995]
[1753296892022,0.00668622,118500.0,118490.0,0.79736995]
[1753296892889,0.00668622,118500.0,118490.0,0.78206995]
[1753296895411,0.00668622,118500.0,118490.0,0.65258995]
[1753296895626,0.00871622,118500.0,118490.0,0.56513265]
[1753296895837,0.01171622,118500.0,118490.0,0.69457265]
[1753296896291,0.00871622,118500.0,118490.0,0.69457265]
[1753296896762,0.00668622,118500.0,118490.0,0.69755265]
[1753296897831,0.00668622,118500.0,118490.0,0.71285265]
[1753296898092,0.00668622,118500.0,118490.0,0.69755265]
[1753296899076,0.00668622,118500.0,118490.0,0.72825265]
[1753296900689,0.00668622,118500.0,118490.0,0.69755265]
[1753296901160,0.01171622,118500.0,118490.0,0.69457265]
[1753296901604,0.00871622,118500.0,118490.0,0.69457265]
[1753296902730,0.04361622,118500.0,118490.0,0.69457265]
[1753296903633,0.01171622,118500.0,118490.0,0.69457265]
[1753296904072,0.00871622,118500.0,118490.0,0.69457265]
[1753296906217,0.00668622,118500.0,118490.0,0.69758265]
[1753296911267,0.00871622,118500.0,118490.0,0.33164833]
[1753296911510,0.04344622,118500.0,118490.0,0.69453265]
[1753296913568,0.00871622,118500.0,118490.0,0.69453265]
[1753296914961,0.03961622,118500.0,118490.0,0.69453265]
[1753296916144,0.04274622,118500.0,118490.0,0.69453265]
[1753296917000,0.05118446,118500.0,118490.0,0.69239265]
[1753296917215,0.04274622,118500.0,118490.0,0.69239265]
[1753296917400,0.05118439,118500.0,118490.0,0.69239265]
[1753296917616,0.04274622,118500.0,118490.0,0.69239265]
[1753296917856,0.04274622,118500.0,118490.0,0.69139265]
[1753296918700,0.04274622,118500.0,118490.0,0.68639265]
[1753296919146,0.04274622,118500.0,118490.0,0.68839265]
[1753296920683,0.03961622,118500.0,118490.0,0.69055265]
[1753296921582,0.02431622,118500.0,118490.0,0.69055265]
[1753296922228,0.02228622,118500.0,118490.0,0.69055265]
[1753296922440,0.00668622,118500.0,118490.0,0.69356265]
[1753296927584,0.00871622,118500.0,118490.0,0.69055265]
[1753296928101,0.02559292,118500.0,118490.0,0.69055265]
[1753296928313,0.21124656,118500.0,118490.0,0.68211362]
[1753296928508,0.06443152,118500.0,118490.0,0.56115265]
[1753296928716,0.06756152,118500.0,118490.0,0.69055265]
[1753296928928,0.06756152,118500.0,118490.0,0.68211362]
[1753296929157,0.05912292,118500.0,118490.0,0.69055265]
[1753296929596,0.05912292,118500.0,118490.0,0.56115265]
[1753296929597,0.06756152,118500.0,118490.0,0.56115265]
[1753296929818,0.06756152,118500.0,118490.0,0.55899265]
[1753296930057,0.05912292,118500.0,118490.0,0.68839265]
[1753296930265,0.05068446,118500.0,118490.0,0.68839265]
[1753296930477,0.06756131,118500.0,118490.0,0.68839265]
[1753296930736,0.06756124,118500.0,118490.0,0.68839265]
[1753296932037,0.06756124,118500.0,118490.0,0.55899265]
[1753296932241,0.06756124,118500.0,118490.0,0.68839265]
[1753296932844,0.06756124,118500.0,118490.0,0.55899265]
[1753296933017,0.06756124,118500.0,118490.0,0.68839265]
[1753296933236,0.06756124,118500.0,118490.0,1.14174853]
[1753296933585,0.05912278,118500.0,118490.0,1.14174853]
[1753296933818,0.05912285,118500.0,118490.0,1.14390853]
[1753296934392,0.05912285,118500.0,118490.0,1.01450853]
[1753296934612,0.05068439,118500.0,118490.0,1.14390853]
[1753296934813,0.01715439,118500.0,118490.0,1.14390853]
[1753296935129,0.02559278,118500.0,118490.0,1.14390853]
[1753296935660,0.00871622,118500.0,118490.0,1.14390853]
[1753296935866,0.00668622,118500.0,118490.0,1.14699853]
[1753296936738,0.01512446,118500.0,118490.0,0.33075833]
[1753296936991,0.02551285,118500.0,118490.0,1.14390853]
[1753296937219,0.01707446,118500.0,118490.0,1.14390853]
[1753296937449,0.02551278,118500.0,118490.0,1.14390853]
[1753296937884,0.02019446,118500.0,118490.0,1.14390853]
[1753296938331,0.01175622,118500.0,118490.0,1.14390853]
[1753296938560,0.00863622,118500.0,118490.0,1.14390853]
[1753296939018,0.00668622,118500.0,118490.0,1.14699853]
[1753296940696,0.00668622,118500.0,118490.0,1.16359853]
[1753296941145,0.00668622,118500.0,118490.0,1.17919853]
[1753296942435,0.00668622,118500.0,118490.0,1.17719853]
[1753296943725,0.00668622,118500.0,118490.0,1.17919853]
[1753296943939,0.00668622,118500.0,118490.0,1.17719853]
[1753296944143,0.00668622,118500.0,118490.0,1.18019853]
[1753296946295,0.00668622,118500.0,118490.0,1.18119853]
[1753296947450,0.00668622,118500.0,118490.0,1.01959853]
[1753296947868,0.00668622,118500.0,118490.0,1.14590853]
[1753296948287,0.00863622,118500.0,118490.0,1.01650853]
[1753296948517,0.07484218,118500.0,118490.0,0.18123006]
[1753296948726,0.24361855,118500.0,118490.0,0.31063006]
[1753296948932,0.24361855,118500.0,118490.0,0.73562871]
[1753296949146,0.25205736,118500.0,118490.0,0.74406788]
[1753296949327,0.25205736,118500.0,118490.0,0.69780303]
[1753296949740,0.24361904,118500.0,118490.0,0.69480303]
[1753296950159,0.24361904,118500.0,118490.0,0.69680303]
[1753296950363,0.23764867,118500.0,118490.0,0.69680303]
[1753296951375,0.46368744,118500.0,118490.0,0.67992462]
[1753296951585,0.4552487,118500.0,118490.0,0.67992462]
[1753296951788,0.4552487,118500.0,118490.0,0.69680289]
[1753296951789,0.12491352,118500.0,118490.0,0.69680289]
[1753296951986,0.04355622,118500.0,118490.0,0.69896289]
[1753296952356,0.44355622,118500.0,118490.0,0.69896289]
[1753296952778,0.41175622,118500.0,118490.0,0.69896289]
[1753296953191,0.42019439,118500.0,118490.0,0.69896289]
[1753296953423,0.41175622,118500.0,118490.0,0.69896289]
[1753296954277,0.40668622,118500.0,118490.0,0.70205289]
[1753296954800,0.00668622,118500.0,118490.0,0.70205289]
[1753296956390,0.00668622,118500.0,118490.0,0.71745289]
[1753296960052,0.00668622,118500.0,118490.0,0.73295289]
[1753296962632,0.00668622,118500.0,118490.0,1.53773446]
[1753296963089,0.00668622,118500.0,118490.0,1.17487921]
[1753296963592,0.00668622,118500.0,118490.0,1.17287921]
[1753296963801,0.00668622,118500.0,118490.0,1.17687921]
[1753296964016,0.00668622,118500.0,118490.0,1.18543799]
[1753296964442,0.00668622,118500.0,118490.0,1.18743799]
[1753296964867,0.00668622,118500.0,118490.0,1.55029324]
[1753296965957,0.00668622,118500.0,118490.0,1.54429324]
[1753296966806,0.00668622,118500.0,118490.0,1.55275324]
[1753296974616,0.0004,118520.0,118510.0,0.21007557]
[1753296974817,0.0004,118520.0,118510.0,1.03863337]
[1753296975048,0.0004,118520.0,118510.0,1.17118337]
[1753296975990,0.0004,118520.0,118510.0,1.17418337]
[1753296976193,0.0004,118520.0,118510.0,1.19163239]
[1753296977187,0.0004,118520.0,118510.0,1.19263239]
[1753296981663,0.0004,118520.0,118510.0,1.19259239]
[1753296981928,0.0004,118520.0,118510.0,0.33756189]
[1753296982223,0.0004,118520.0,118510.0,1.16029239]
[1753296982426,0.0004,118520.0,118510.0,1.03097239]
[1753296982644,0.00542,118520.0,118510.0,1.13965337]
[1753296983299,0.03672,118520.0,118510.0,1.13965337]
[1753296983854,0.00542,118520.0,118510.0,1.13965337]
[1753296985611,0.03712,118520.0,118510.0,1.13965337]
[1753296985824,0.03712,118520.0,118510.0,1.13758337]
[1753296986064,0.03712,118520.0,118510.0,1.13965337]
[1753296986303,0.03712,118520.0,118510.0,1.13758337]
[1753296986497,0.24417403,118520.0,118510.0,0.5440554]
[1753296986737,0.23573728,118520.0,118510.0,0.50461335]
[1753296986954,0.22274232,118520.0,118510.0,0.49617525]
[1753296987177,0.22274232,118520.0,118510.0,0.36585525]
[1753296987400,0.21430514,118520.0,118510.0,0.36585525]
[1753296988670,0.21430514,118520.0,118510.0,0.53161737]
[1753296989045,0.21430514,118520.0,118510.0,0.54205547]
[1753296989248,0.21430514,118520.0,118510.0,0.54849343]
[1753296989545,0.21430514,118520.0,118510.0,0.54949343]
[1753296990110,0.29638712,118520.0,118510.0,0.54949343]
[1753296990927,0.69638712,118520.0,118510.0,0.54949343]
[1753296991898,0.61430514,118520.0,118510.0,0.54949343]
[1753296992079,0.61430514,118520.0,118510.0,0.566369]
[1753296992591,0.61430514,118520.0,118510.0,0.54105547]
[1753296993245,0.61430514,118520.0,118510.0,0.5494935]
[1753296993662,0.61430514,118520.0,118510.0,0.55793146]
[1753296993901,0.61430514,118520.0,118510.0,0.56636935]
[1753296994113,0.63117956,118520.0,118510.0,0.57480682]
[1753296994333,0.45399428,118520.0,118510.0,0.56636879]
[1753296994545,0.53847158,118520.0,118510.0,0.57480646]
[1753296994955,0.45399428,118520.0,118510.0,0.5748061]
[1753296995150,0.46243103,118520.0,118510.0,0.5748061]
[1753296995368,0.44555682,118520.0,118510.0,0.5748061]
[1753296995534,0.43712,118520.0,118510.0,0.7041261]
[1753296995750,0.43712,118520.0,118510.0,0.7062361]
[1753296997378,0.40542,118520.0,118510.0,0.7062361]
[1753296997593,0.0004,118520.0,118510.0,1.07214135]
[1753296997780,0.0004,118520.0,118510.0,0.7092861]
[1753296997984,0.00235,118520.0,118510.0,0.7062361]
[1753296998325,0.00235,118520.0,118510.0,0.7052361]
[1753296998749,0.00235,118520.0,118510.0,0.7072361]
[1753297000483,0.01078675,118520.0,118510.0,0.7072361]
[1753297001613,0.00235,118520.0,118510.0,0.7072361]
[1753297002243,0.0004,118520.0,118510.0,1.07314135]
[1753297002462,0.0004,118520.0,118510.0,1.10414135]
[1753297003085,0.0004,118520.0,118510.0,1.08904135]
[1753297004377,0.0004,118520.0,118510.0,1.07314135]
[1753297005492,0.00235,118520.0,118510.0,0.7072361]
[1753297006666,0.02241357,118520.0,118510.0,0.5758061]
[1753297006937,0.06234734,118520.0,118510.0,0.34223085]
[1753297007151,0.04507675,118520.0,118510.0,0.7050861]
[1753297008092,0.03664,118520.0,118510.0,0.7050861]
[1753297008769,0.04507675,118520.0,118510.0,0.7050861]
[1753297008986,0.03664,118520.0,118510.0,0.7050861]
[1753297009427,0.00554,118520.0,118510.0,0.7071961]
[1753297009854,0.00235,118520.0,118510.0,0.7071961]
[1753297013042,0.01078675,118520.0,118510.0,0.7071961]
[1753297013255,0.01397675,118520.0,118510.0,0.7071961]
[1753297013731,0.04467675,118520.0,118510.0,0.7050861]
[1753297013933,0.06155046,118520.0,118510.0,0.7050861]
[1753297014138,0.06998749,118520.0,118510.0,0.7050861]
[1753297014370,0.09554928,118520.0,118510.0,0.7050861]
[1753297014791,0.10398646,118520.0,118510.0,0.7050861]
[1753297015009,0.07842517,118520.0,118510.0,0.7050861]
[1753297015448,0.06155074,118520.0,118510.0,0.7050861]
[1753297015654,0.46998792,118520.0,118510.0,0.7050861]
[1753297015911,0.46155074,118520.0,118510.0,0.7050861]
[1753297016132,0.46998784,118520.0,118510.0,0.7050861]
[1753297016344,0.47842509,118520.0,118510.0,0.7050861]
[1753297017346,0.54398698,118520.0,118510.0,0.7050861]
[1753297017567,0.81670413,118520.0,118510.0,0.36485525]
[1753297018154,0.81670413,118520.0,118510.0,0.37329335]
[1753297018456,0.80826703,118520.0,118510.0,0.36485525]
[1753297020279,0.80826703,118520.0,118510.0,0.002]
[1753297020480,0.80826703,118520.0,118510.0,0.36485525]
[1753297020686,0.80826703,118520.0,118510.0,0.53361737]
[1753297020908,0.80826703,118520.0,118510.0,0.36485525]
[1753297021128,0.80826703,118520.0,118510.0,0.53361737]
[1753297021330,0.74270514,118520.0,118510.0,0.55049329]
[1753297021527,0.45311428,118520.0,118510.0,0.55693111]
[1753297021739,0.5908311,118520.0,118510.0,0.56536871]
[1753297021948,0.5908311,118520.0,118510.0,0.56636871]
[1753297022151,0.59926842,118520.0,118510.0,0.56636871]
[1753297022362,0.76801631,118520.0,118510.0,0.56636871]
[1753297022559,0.7764537,118520.0,118510.0,0.56636871]
[1753297022929,0.76801688,118520.0,118510.0,0.55793111]
[1753297023770,0.76801688,118520.0,118510.0,0.56636886]
[1753297024652,0.85249418,118520.0,118510.0,0.56636886]
[1753297024882,0.45249418,118520.0,118510.0,0.56636886]
[1753297025114,0.36801688,118520.0,118510.0,0.5748061]
[1753297025341,0.5908316,118520.0,118510.0,0.5748061]
[1753297025928,0.75957949,118520.0,118510.0,0.5748061]
[1753297026464,0.76801688,118520.0,118510.0,0.5748061]
[1753297027041,0.5908316,118520.0,118510.0,0.5748061]
[1753297027846,0.75957949,118520.0,118510.0,0.5748061]
[1753297028150,0.5908316,118520.0,118510.0,0.5748061]
[1753297028390,0.03624,118520.0,118510.0,0.5748061]
[1753297028615,0.12968,118520.0,118510.0,0.7061561]
[1753297028825,0.0004,118520.0,118510.0,0.7093161]
[1753297029881,0.0004,118520.0,118510.0,1.10367135]
[1753297032117,0.0004,118520.0,118510.0,1.10267135]
[1753297032557,0.0004,118520.0,118510.0,0.97339135]
[1753297032800,0.0004,118520.0,118510.0,0.58522336]
[1753297033026,0.00883675,118520.0,118510.0,0.37008525]
[1753297033245,0.19658942,118520.0,118510.0,0.49616525]
[1753297033663,0.19109246,118520.0,118510.0,0.49616525]
[1753297034005,0.23110119,118520.0,118510.0,0.13331]
[1753297034238,0.25426401,118520.0,118510.0,0.36485525]
[1753297034438,0.21425528,118520.0,118510.0,0.49409525]
[1753297034638,0.21425528,118520.0,118510.0,0.49209525]
[1753297035068,0.19407571,118510.0,118500.0,0.15483813]
[1753297035219,0.20464346,118510.0,118500.0,0.52820219]
[1753297035421,0.21308099,118510.0,118500.0,0.52820219]
[1753297035628,0.21308099,118510.0,118500.0,0.51976338]
[1753297036055,0.21308099,118510.0,118500.0,0.52820219]
[1753297036264,0.20464289,118510.0,118500.0,0.71385597]
[1753297036487,0.20464289,118510.0,118500.0,0.72229457]
[1753297036742,0.21308092,118510.0,118500.0,0.7054173]
[1753297037073,0.20464289,118510.0,118500.0,0.71385597]
[1753297037266,0.21308092,118510.0,118500.0,0.7074173]
[1753297037783,0.29755822,118510.0,118500.0,0.7074173]
[1753297038496,0.29755822,118510.0,118500.0,0.71585597]
[1753297039057,0.28912019,118510.0,118500.0,0.71585597]
[1753297039277,0.29755815,118510.0,118500.0,0.71585597]
[1753297039515,0.29755872,118510.0,118500.0,0.7074173]
[1753297039741,0.28912062,118510.0,118500.0,0.7074173]
[1753297039948,0.28912062,118510.0,118500.0,0.71585597]
[1753297040168,0.28912062,118510.0,118500.0,0.7074173]
[1753297040778,0.29755872,118510.0,118500.0,0.69897856]
[1753297041607,0.29755872,118510.0,118500.0,0.52176338]
[1753297041814,0.28068337,118510.0,118500.0,0.52176338]
[1753297042033,0.28068337,118510.0,118500.0,0.002]
[1753297042034,0.30698548,118510.0,118500.0,0.002]
[1753297042249,0.30698548,118510.0,118500.0,0.36485525]
[1753297042957,0.70698548,118510.0,118500.0,0.36485525]
[1753297043412,0.83622548,118510.0,118500.0,0.36485525]
[1753297047748,0.70698548,118510.0,118500.0,0.36485525]
[1753297047963,0.83622548,118510.0,118500.0,0.36485525]
[1753297050376,0.75170818,118510.0,118500.0,0.54207043]
[1753297050600,0.74327022,118510.0,118500.0,0.54207043]
[1753297050812,0.73483212,118510.0,118500.0,0.36485525]
[1753297051296,0.73483212,118510.0,118500.0,0.002]
[1753297051512,0.73483212,118510.0,118500.0,0.36485525]
[1753297051757,0.81930942,118510.0,118500.0,0.36485525]
[1753297052080,0.81930942,118510.0,118500.0,0.002]
[1753297052347,0.81930942,118510.0,118500.0,0.36485525]
[1753297052751,0.81930942,118510.0,118500.0,0.002]
[1753297052954,0.81930942,118510.0,118500.0,0.36485525]
[1753297060495,0.73483212,118510.0,118500.0,0.36485525]
[1753297060929,0.70303212,118510.0,118500.0,0.54207043]
[1753297061139,0.70303212,118510.0,118500.0,0.5505091]
[1753297061339,0.40507,118510.0,118500.0,0.5505091]
[1753297061573,0.14607549,118510.0,118500.0,0.5952977]
[1753297061792,0.16455503,118510.0,118500.0,0.60373623]
[1753297061997,0.16455503,118510.0,118500.0,0.61217455]
[1753297062211,0.33331715,118510.0,118500.0,0.58087455]
[1753297062435,0.33171331,118510.0,118500.0,0.58087455]
[1753297062682,0.16295119,118510.0,118500.0,0.57778455]
[1753297062914,0.16455503,118510.0,118500.0,0.57778455]
[1753297063489,0.03535503,118510.0,118500.0,0.57778455]
[1753297064033,0.05896075,118510.0,118500.0,0.57778455]
[1753297064227,0.05735691,118510.0,118500.0,0.57778455]
[1753297064682,0.05735684,118510.0,118500.0,0.57778455]
[1753297065512,0.45735684,118510.0,118500.0,0.57778455]
[1753297065719,0.43375112,118510.0,118500.0,0.57778455]
[1753297065926,0.61305177,118510.0,118500.0,0.20649098]
[1753297066134,0.6046141,118510.0,118500.0,0.57778462]
[1753297066545,0.6078041,118510.0,118500.0,0.57778462]
[1753297066961,0.7370041,118510.0,118500.0,0.57778462]
[1753297067200,0.6922814,118510.0,118500.0,0.56934623]
[1753297067419,0.6922814,118510.0,118500.0,0.67966917]
[1753297067420,0.83616555,118510.0,118500.0,0.67966917]
[1753297067641,0.83616555,118510.0,118500.0,0.68810784]
[1753297067857,0.83616555,118510.0,118500.0,0.70498497]
[1753297068679,0.82006555,118510.0,118500.0,0.70498497]
[1753297069291,0.63580343,118510.0,118500.0,0.57582413]
[1753297069833,0.63580315,118510.0,118500.0,0.57778413]
[1753297070260,0.80456527,118510.0,118500.0,0.57778413]
[1753297070852,0.67540527,118510.0,118500.0,0.57778413]
[1753297071151,0.80456527,118510.0,118500.0,0.57778413]
[1753297071364,0.81300337,118510.0,118500.0,0.57778413]
[1753297072895,0.55132585,118510.0,118500.0,0.57778413]
[1753297073134,0.62202797,118510.0,118500.0,0.57582413]
[1753297073342,0.75118797,118510.0,118500.0,0.70498413]
[1753297073524,0.75962607,118510.0,118500.0,0.34212888]
[1753297073732,0.84410337,118510.0,118500.0,0.70498413]
[1753297074765,0.71494337,118510.0,118500.0,0.70498413]
[1753297075310,0.84410337,118510.0,118500.0,0.69654581]
[1753297075862,0.84410337,118510.0,118500.0,0.68810742]
[1753297076081,0.84410337,118510.0,118500.0,0.69654581]
[1753297076792,0.71494337,118510.0,118500.0,0.69654581]
[1753297077025,0.81300337,118510.0,118500.0,0.69654581]
[1753297077232,0.68384337,118510.0,118500.0,0.69654581]
[1753297077441,0.81300337,118510.0,118500.0,0.69654581]
[1753297078182,0.50664315,118510.0,118500.0,0.70694413]
[1753297078395,0.81300337,118510.0,118500.0,0.70694413]
[1753297078850,0.81300337,118510.0,118500.0,0.69850581]
[1753297079312,0.81300337,118510.0,118500.0,0.69654581]
[1753297080587,0.41300337,118510.0,118500.0,0.69654581]
[1753297080992,0.81300337,118510.0,118500.0,0.69654581]
[1753297081301,0.81300337,118510.0,118500.0,1.14139489]
[1753297081516,0.41300337,118510.0,118500.0,1.14983335]
[1753297082039,0.81300337,118510.0,118500.0,1.14983335]
[1753297082636,0.81300337,118510.0,118500.0,1.15179335]
[1753297082854,0.64101125,118510.0,118500.0,1.16023167]
[1753297083527,0.4084376,118510.0,118500.0,1.16023167]
[1753297083741,0.42531331,118510.0,118500.0,1.17910167]
[1753297083950,0.41687535,118510.0,118500.0,1.16330167]
[1753297084749,0.42531324,118510.0,118500.0,1.16330167]
[1753297084963,0.42531317,118510.0,118500.0,1.16330167]
[1753297085432,0.41687535,118510.0,118500.0,1.16330167]
[1753297085664,0.0004,118520.0,118510.0,0.22637557]
[1753297085885,0.0004,118520.0,118510.0,1.17163829]
[1753297086118,0.0004,118520.0,118510.0,1.17668829]
[1753297086379,0.0004,118520.0,118510.0,0.76861693]
[1753297086587,0.0004,118520.0,118510.0,1.17668829]
[1753297087004,0.0004,118520.0,118510.0,0.76861693]
[1753297087224,0.0004,118520.0,118510.0,0.72414137]
[1753297087676,0.0004,118520.0,118510.0,1.08673717]
[1753297090406,0.0004,118520.0,118510.0,0.72414137]
[1753297090824,0.0004,118520.0,118510.0,0.36154557]
[1753297091036,0.0004,118520.0,118510.0,0.72414137]
[1753297093595,0.0004,118520.0,118510.0,0.36154557]
[1753297093820,0.0004,118520.0,118510.0,0.72414137]
[1753297094749,0.0004,118520.0,118510.0,0.70764137]
[1753297094955,0.01942371,118520.0,118510.0,0.55965137]
[1753297095179,0.12654378,118520.0,118510.0,0.68675137]
[1753297095390,0.25562378,118520.0,118510.0,0.68675137]
[1753297095608,0.24558284,118520.0,118510.0,0.68675137]
[1753297096587,0.25401994,118520.0,118510.0,0.68675137]
[1753297096842,0.22131994,118520.0,118510.0,0.55767137]
[1753297097052,0.26225719,118520.0,118510.0,0.68675137]
[1753297097558,0.24538284,118520.0,118510.0,0.68675137]
[1753297098020,0.25381994,118520.0,118510.0,0.68675137]
[1753297098783,0.24538284,118520.0,118510.0,0.55767137]
[1753297098993,0.25381994,118520.0,118510.0,0.55767137]
[1753297099637,0.24538284,118520.0,118510.0,0.55767137]
[1753297099872,0.21288284,118520.0,118510.0,0.55767137]
[1753297100062,0.22131987,118520.0,118510.0,0.55767137]
[1753297100280,0.22975697,118520.0,118510.0,0.55767137]
[1753297101121,0.21288277,118520.0,118510.0,0.55767137]
[1753297101339,0.21288277,118520.0,118510.0,0.55965137]
[1753297101530,0.20985277,118520.0,118510.0,0.55965137]
[1753297102755,0.2182898,118520.0,118510.0,0.55965137]
[1753297103408,0.22975705,118520.0,118510.0,0.55767137]
[1753297103634,0.26035698,118520.0,118510.0,0.55767137]
[1753297103848,0.2297569,118520.0,118510.0,0.55767137]
[1753297104297,0.21288277,118520.0,118510.0,0.55767137]
[1753297104488,0.21288277,118520.0,118510.0,0.55965137]
[1753297104708,0.20985277,118520.0,118510.0,0.55965137]
[1753297105324,0.21828973,118520.0,118510.0,0.55965137]
[1753297106776,0.22672676,118520.0,118510.0,0.55965137]
[1753297107228,0.22672676,118520.0,118510.0,0.60506116]
[1753297107454,0.21828973,118520.0,118510.0,0.60506116]
[1753297108984,0.20985277,118520.0,118510.0,0.60506116]
[1753297109415,0.2098527,118520.0,118510.0,0.60506116]
[1753297110748,0.20141588,118520.0,118510.0,0.60506116]
[1753297110963,0.19293913,118520.0,118510.0,0.73717116]
[1753297111180,0.12944,118520.0,118510.0,0.73717116]
[1753297112260,0.13787682,118520.0,118510.0,0.73717116]
[1753297112468,0.12944,118520.0,118510.0,0.73717116]
[1753297112677,0.13787675,118520.0,118510.0,0.73717116]
[1753297112888,0.13787675,118520.0,118510.0,0.73410116]
[1753297113533,0.21624139,118520.0,118510.0,0.73410116]
[1753297114959,0.20780464,118520.0,118510.0,0.73410116]
[1753297115280,0.21624139,118520.0,118510.0,0.73410116]
[1753297116738,0.20780464,118520.0,118510.0,0.73410116]
[1753297117354,0.21624146,118520.0,118510.0,0.73410116]
[1753297117562,0.22467842,118520.0,118510.0,0.73410116]
[1753297117771,0.22671842,118520.0,118510.0,0.73410116]